bitfinex/quotes_ETHUSD_20211001
["timestamp","ask_amount","ask_price","bid_price","bid_amount"]
[1633063956859,1.43482733,2997.3,2996.9,3.3368364]
[1633063957855,1.43482733,2997.3,2997.1,5.00539]
[1633063958256,0.8748,2997.5,2997.1,5.00539]
[1633063959858,0.8748,2997.5,2997.2,1.30347348]
[1633063960057,0.8748,2997.5,2997.2,4.64015688]
[1633063960260,0.8748,2997.5,2997.2,3.3366834]
[1633063961258,0.8748,2997.5,2997.3,5.00442]
[1633063987156,0.8748,2997.5,2997.4,2.73291743]
[1633063987293,0.8748,2997.5,2997.4,3.93705743]
[1633063989298,0.8748,2997.5,2997.4,10.98207103]
[1633063989498,0.8748,2997.5,2997.4,10.97793103]
[1633063989899,0.8748,2997.5,2997.4,8.5390136]
[1633063990298,0.8748,2997.5,2997.4,9.5390136]
[1633063991101,0.8748,2997.5,2997.4,8.5390136]
[1633063991700,0.8748,2997.5,2997.4,9.5390136]
[1633063993304,0.8748,2997.5,2997.4,10.97677602]
[1633063995402,0.8748,2997.5,2997.4,9.5390136]
[1633063995805,0.8748,2997.5,2997.4,10.97632699]
[1633063998006,0.8748,2997.5,2997.4,9.5390136]
[1633063999808,0.8748,2997.5,2997.4,8.3390136]
[1633063999809,2.1688,2997.5,2997.4,8.3390136]
[1633064000020,0.886523,2997.5,2996.6,11.45753173]
[1633064000209,0.886523,2997.5,2996.8,1.43715621]
[1633064000808,1.73396754,2997.1,2996.8,1.43715621]
[1633064001112,0.008225,2997.0,2996.5,0.003]
[1633064001308,2.45222779,2997.0,2996.5,1.44037517]
[1633064001509,0.008225,2997.0,2996.6,1.43746149]
[1633064001709,0.008225,2997.0,2996.5,0.003]
[1633064001909,0.008225,2997.0,2996.2,1.44046751]
[1633064002172,4.33916754,2997.1,2996.6,5.00588]
[1633064002173,3.448,2997.1,2996.6,5.00588]
[1633064002310,2.83231727,2997.4,2996.7,1.43747666]
[1633064002311,0.207991,2997.4,2996.7,1.43747666]
[1633064002711,0.207991,2997.4,2996.5,0.003]
[1633064002912,2.61364357,2997.4,2996.5,0.003]
[1633064003110,1.42678649,2997.0,2996.4,1.44060479]
[1633064003311,1.42678649,2997.0,2996.7,5.00565]
[1633064004714,0.75643579,2997.3,2996.7,5.00565]
[1633064004912,0.75643579,2997.3,2996.7,5.93048672]
[1633064005177,0.75643579,2997.3,2996.7,5.92520464]
[1633064005714,1.86807717,2997.3,2996.8,1.26535422]
[1633064005916,0.8748,2997.5,2996.8,4.60201422]
[1633064006115,0.8748,2997.5,2996.9,1.43789215]
[1633064006713,0.8748,2997.5,2996.8,3.33666]
[1633064006914,0.77205604,2997.4,2997.0,5.00519]
[1633064007916,1.21801192,2997.1,2997.0,5.00519]
[1633064008517,0.77205604,2997.4,2997.0,5.00519]
[1633064008718,0.77205604,2997.4,2996.9,3.336696]
[1633064009117,0.8748,2997.5,2996.9,3.336696]
[1633064009716,1.41238071,2997.1,2996.9,3.336696]
[1633064010515,1.41238071,2997.1,2996.9,8.342086]
[1633064010914,1.75964506,2997.5,2996.9,8.342086]
[1633064011715,1.75964506,2997.5,2997.0,5.00522]
[1633064012918,1.15266711,2997.4,2997.0,5.00522]
[1633064015917,0.8748,2997.5,2997.0,5.00522]
[1633064016119,0.8748,2997.5,2997.1,1.44006998]
[1633064016520,0.8748,2997.5,2997.2,1.44024595]
[1633064016719,0.8748,2997.5,2996.9,3.336696]
[1633064016918,0.8748,2997.5,2997.0,1.44029304]
[1633064017519,0.8748,2997.5,2997.0,1.43817971]
[1633064018121,1.35596266,2997.2,2997.0,6.44338971]
[1633064018321,1.35596266,2997.2,2997.0,5.00521]
[1633064023426,1.35596266,2997.2,2996.7,8.17533963]
[1633064023427,1.35596266,2997.2,2996.7,4.83867963]
[1633064023825,1.35596266,2997.2,2996.9,5.00534]
[1633064024630,0.8748,2997.5,2996.9,5.00534]
[1633064024828,0.8748,2997.5,2997.0,0.57744089]
[1633064025027,0.8748,2997.5,2997.0,1.0]
[1633064025429,0.8748,2997.5,2996.9,1.0]
[1633064025632,0.8748,2997.5,2996.8,10.5872731]
[1633064025633,1.59024417,2997.5,2996.8,12.602904]
[1633064025829,1.50405327,2997.3,2996.8,11.74597219]
[1633064026289,1.50405327,2997.3,2996.8,10.5872731]
[1633064027690,1.50405327,2997.3,2997.1,5.00512]
[1633064029090,1.50405327,2997.3,2996.8,12.60391461]
[1633064029289,1.50405327,2997.3,2996.8,12.60424414]
[1633064029489,1.50405327,2997.3,2996.8,12.60429126]
[1633064029691,1.50405327,2997.3,2996.8,12.60429908]
[1633064029895,1.50405327,2997.3,2996.8,10.58753231]
[1633064030290,0.8748,2997.5,2997.0,1.294]
[1633064030491,0.8748,2997.5,2997.3,1.50405327]
[1633064030692,0.8748,2997.5,2997.4,0.2]
[1633064030891,0.8748,2997.5,2997.4,2.79452632]
[1633064031094,0.8748,2997.5,2997.4,3.79452632]
[1633064031293,0.8748,2997.5,2997.4,5.27325595]
[1633064031493,0.8748,2997.5,2997.4,7.30005367]
[1633064031694,0.8748,2997.5,2997.4,8.98281595]
[1633064032094,0.8748,2997.5,2997.4,9.56056987]
[1633064032495,0.8748,2997.5,2997.4,8.98281595]
[1633064032697,0.8748,2997.5,2997.4,11.40752174]
[1633064032896,0.8748,2997.5,2997.4,11.98525413]
[1633064033496,0.8748,2997.5,2997.4,11.40752174]
[1633064033896,0.8748,2997.5,2997.4,11.98523861]
[1633064034100,0.8748,2997.5,2997.4,10.11352174]
[1633064034496,0.8748,2997.5,2997.4,8.98281595]
[1633064034696,0.8748,2997.5,2997.4,7.49756]
[1633064034899,0.8748,2997.5,2997.4,10.09142704]
[1633064035297,0.8748,2997.5,2997.4,10.09143134]
[1633064035699,0.8748,2997.5,2997.4,11.05737978]
[1633064036896,0.8748,2997.5,2997.4,12.2810627]
[1633064038098,0.034991,2997.8,2997.6,0.87779633]
[1633064038298,0.003,2998.0,2997.7,0.204563]
[1633064038499,0.003,2998.0,2997.7,0.78204058]
[1633064038698,0.003,2998.0,2997.8,1.294]
[1633064038899,0.003,2998.0,2997.9,0.2]
[1633064039099,0.003,2998.0,2997.9,2.47014502]
[1633064039300,0.003,2998.0,2997.9,1.04701076]
[1633064039501,0.003,2998.0,2997.9,2.04701076]
[1633064040300,0.003,2998.0,2997.9,3.17378699]
[1633064044302,0.003,2998.0,2997.9,8.17645699]
[1633064047503,0.003,2998.0,2997.9,9.61770214]
[1633064049809,0.003,2998.0,2997.9,8.77069138]
[1633064050807,0.003,2998.0,2997.9,9.68413678]
[1633064060224,0.003,2998.0,2997.9,10.93533678]
[1633064062024,0.003,2998.0,2997.9,9.68413678]
[1633064073632,0.003,2998.0,2997.9,11.69275543]
[1633064075636,0.003,2998.0,2997.9,31.17275543]
[1633064076032,0.003,2998.0,2997.9,32.46675543]
[1633064076235,0.003,2998.5,2997.9,33.06748433]
[1633064076436,0.003,2998.5,2998.0,4.4449508]
[1633064076636,0.003,2998.5,2998.1,23.62279951]
[1633064076835,0.003,2998.5,2998.2,1.4368817]
[1633064077036,0.003,2998.5,2998.4,2.45734036]
[1633064077235,0.003,2998.5,2998.4,9.09620531]
[1633064077436,0.003,2998.5,2998.4,10.09620531]
[1633064078035,0.003,2998.5,2998.4,8.65933036]
[1633064078234,0.003,2998.5,2998.4,10.09628388]
[1633064079234,0.003,2998.5,2998.4,29.57628388]
[1633064080235,0.003,2998.5,2998.4,10.09628388]
[1633064087303,0.003,2998.5,2998.4,29.57628388]
[1633064087704,0.003,2998.5,2998.4,10.09628388]
[1633064091910,0.003,2998.5,2998.4,11.39448688]
[1633064092312,0.003,2998.5,2998.4,10.10048688]
[1633064096814,0.003,2998.5,2998.4,10.09628388]
[1633064097416,0.003,2998.5,2998.4,9.10196603]
[1633064097618,0.003,2998.5,2998.4,5.20199]
[1633064097817,0.003,2998.5,2998.4,5.00199]
[1633064103322,0.003,2998.5,2998.4,5.81730954]
[1633064103525,0.003,2998.5,2998.4,5.00199]
[1633064104525,0.003,2998.5,2998.4,6.44481841]
[1633064104926,0.003,2998.5,2998.4,5.00199]
[1633064106325,0.003,2998.5,2998.4,6.44507732]
[1633064110532,0.003,2998.5,2998.4,6.64507732]
[1633064110934,0.003,2998.5,2998.1,3.5342227]
[1633064111132,0.003,2998.5,2998.2,1.44412125]
[1633064111133,0.011178,2998.5,2998.2,1.44412125]
[1633064111333,0.011178,2998.5,2997.7,3.79365743]
[1633064111536,0.011178,2998.5,2997.8,1.44416634]
[1633064111735,0.77548952,2998.3,2997.8,1.44416634]
[1633064111932,0.77548952,2998.3,2997.8,2.56908327]
[1633064112132,5.00371,2998.4,2997.9,1.44432673]
[1633064112333,0.011178,2998.5,2997.9,2.44432673]
[1633064112534,0.011178,2998.5,2998.0,1.44432822]
[1633064112933,1.47733356,2998.5,2998.0,2.44432822]
[1633064113196,2.3192299,2998.5,2998.1,1.44452219]
[1633064113334,2.3192299,2998.5,2997.9,6.44774094]
[1633064113335,0.85307434,2998.5,2997.9,6.44774094]
[1633064113534,0.85307434,2998.5,2998.0,2.44453055]
[1633064113733,0.85307434,2998.5,2998.1,1.44454032]
[1633064114543,1.31501169,2998.3,2998.2,1.44454501]
[1633064114737,0.85307434,2998.5,2998.2,1.44462383]
[1633064114935,0.85307434,2998.5,2997.9,1.0]
[1633064115135,0.85307434,2998.5,2998.0,1.44462306]
[1633064115337,0.85307434,2998.5,2998.1,1.44462816]
[1633064115535,0.85307434,2998.5,2998.2,1.44462939]
[1633064115737,2.17132793,2998.5,2998.0,5.00316]
[1633064115936,2.17132793,2998.5,2998.1,1.44462719]
[1633064116338,2.17132793,2998.5,2998.1,1.44370195]
[1633064116938,2.17132793,2998.5,2997.9,1.0]
[1633064118139,7.17476793,2998.5,2997.9,1.0]
[1633064118338,7.17476793,2998.5,2997.8,1.0]
[1633064118738,7.17476793,2998.5,2997.8,2.14374831]
[1633064122542,7.17476793,2998.5,2997.8,1.0]
[1633064123542,7.17476793,2998.5,2997.9,1.46314192]
[1633064123941,7.17476793,2998.5,2997.9,2.46314192]
[1633064124141,7.17476793,2998.5,2997.9,1.46314192]
[1633064126743,5.85651434,2998.5,2997.9,1.46314192]
[1633064127545,5.85651434,2998.5,2997.9,2.46314192]
[1633064127945,6.98863232,2998.5,2997.9,2.46314192]
[1633064128548,6.98863232,2998.5,2997.9,7.46651192]
[1633064129150,5.85651434,2998.5,2997.9,7.46651192]
[1633064132159,7.08765934,2998.5,2997.9,7.46651192]
[1633064132763,5.85651434,2998.5,2997.9,7.46651192]
[1633064136762,5.85651434,2998.5,2997.9,6.00337]
[1633064137362,5.85651434,2998.5,2997.9,1.0]
[1633064137561,5.85651434,2998.5,2997.7,6.78112466]
[1633064138364,5.85651434,2998.5,2997.8,0.57747047]
[1633064138563,5.85651434,2998.5,2997.7,0.2]
[1633064138564,0.00905,2998.0,2997.7,0.2]
[1633064138769,0.014494,2997.8,2997.6,0.87779633]
[1633064138966,1.19412047,2997.7,2997.6,0.87779633]
[1633064139565,7.06108866,2997.7,2997.6,0.87779633]
[1633064139766,8.35508866,2997.7,2997.6,0.87779633]
[1633064140230,7.06108866,2997.7,2997.6,0.87779633]
[1633064140966,8.35508866,2997.7,2997.6,0.87779633]
[1633064144972,7.49328047,2997.7,2997.6,0.87779633]
[1633064145170,6.19928047,2997.7,2997.6,0.87779633]
[1633064145371,7.49328047,2997.7,2997.6,0.87779633]
[1633064151174,6.19928047,2997.7,2997.6,0.87779633]
[1633064152975,6.20829847,2997.7,2997.6,0.87779633]
[1633064155977,1.19412047,2997.7,2997.6,0.87779633]
[1633064156379,1.20516547,2997.7,2997.6,0.87779633]
[1633064157578,6.21012547,2997.7,2997.6,0.87779633]
[1633064160983,6.21012547,2997.7,2997.4,0.003]
[1633064160984,0.87779633,2997.6,2997.4,0.003]
[1633064161249,3.30108958,2997.6,2997.4,0.003]
[1633064161384,0.87779633,2997.6,2997.4,0.003]
[1633064161583,0.008394,2997.5,2997.4,0.003]
[1633064161783,5.014414,2997.5,2997.4,0.003]
[1633064161983,5.94420456,2997.5,2997.4,0.003]
[1633064162983,5.014414,2997.5,2997.4,0.003]
[1633064163182,8.3518046,2997.5,2997.4,0.003]
[1633064164249,9.10834992,2997.5,2997.4,0.003]
[1633064164791,8.3518046,2997.5,2996.4,4.81555912]
[1633064164986,1.07661878,2996.9,2996.5,1.41834656]
[1633064168990,0.008531,2996.7,2996.5,1.41834656]
[1633064169190,0.008531,2996.7,2996.6,1.41838803]
[1633064169389,0.008531,2996.7,2996.2,2.19991046]
[1633064169590,0.008531,2996.7,2996.3,1.4181145]
[1633064169790,0.008531,2996.7,2996.4,1.15741672]
[1633064169994,10.01669,2997.0,2996.5,1.41830695]
[1633064169995,0.003,2997.0,2996.5,1.41830695]
[1633064170253,0.003,2997.0,2996.6,1.41817083]
[1633064170392,0.003,2997.0,2996.7,1.41816759]
[1633064170595,0.003,2997.0,2996.2,1.19249874]
[1633064170596,0.00825,2996.9,2996.2,1.19249874]
[1633064170792,0.008794,2996.7,2996.3,1.41834807]
[1633064170992,1.10286966,2996.6,2996.3,1.41834807]
[1633064174894,6.10962966,2996.6,2996.3,1.41834807]
[1633064176296,1.10286966,2996.6,2996.3,1.41834807]
[1633064177899,0.003,2997.0,2996.4,1.294]
[1633064178100,0.003,2997.0,2996.5,1.4213161]
[1633064178300,0.003,2997.0,2996.6,1.41700641]
[1633064178700,5.017129,2997.0,2996.6,1.41700641]
[1633064178900,1.17850746,2996.7,2996.4,0.2]
[1633064179099,1.17850746,2996.7,2996.5,1.4169649]
[1633064184377,5.0065,2996.8,2996.5,1.4169649]
[1633064184576,5.0065,2996.8,2996.5,1.41168871]
[1633064184775,5.0065,2996.8,2996.4,0.2]
[1633064185777,1.31134839,2996.5,2996.4,0.2]
[1633064186179,5.0065,2996.8,2996.6,0.80174993]
[1633064186383,5.0065,2996.8,2996.7,0.20431]
[1633064186580,0.003,2997.0,2996.7,0.77985038]
[1633064186779,0.003,2997.0,2996.7,1.77985038]
[1633064187179,0.003,2997.0,2996.8,1.29571764]
[1633064187378,0.003,2997.0,2996.9,0.2]
[1633064187580,0.003,2997.0,2996.9,5.20475]
[1633064187979,0.003,2997.0,2996.9,6.20475]
[1633064188581,0.003,2997.0,2996.9,7.49875]
[1633064190184,0.003,2997.0,2996.9,8.45810117]
[1633064190383,0.003,2997.0,2996.9,13.71967711]
[1633064190588,0.003,2997.0,2996.9,14.12920196]
[1633064190981,0.003,2997.0,2996.9,32.30610904]
[1633064191182,0.003,2997.0,2996.9,35.63944406]
[1633064191382,0.003,2997.0,2996.9,37.87878492]
[1633064191583,0.003,2997.0,2996.9,35.63952437]
[1633064191782,0.003,2997.5,2997.1,3.3358]
[1633064191983,0.003,2997.5,2997.4,0.99433132]
[1633064192182,0.003,2997.5,2997.4,2.49063132]
[1633064192384,0.003,2998.0,2997.4,2.53133621]
[1633064192584,0.003,2998.0,2997.9,0.004288]
[1633064192784,0.003,2998.0,2997.9,1.54628884]
[1633064192984,0.003,2998.0,2997.9,6.500748]
[1633064193187,0.003,2998.0,2997.9,6.206748]
[1633064194185,0.003,2998.0,2997.9,7.4684795]
[1633064194386,0.003,2998.0,2997.9,8.7624795]
[1633064194785,0.003,2998.0,2997.9,7.500748]
[1633064194986,0.003,2998.0,2997.9,6.20246]
[1633064195587,0.003,2998.0,2997.9,7.49646]
[1633064195788,0.003,2998.0,2997.9,6.20246]
[1633064196989,0.003,2998.0,2997.9,7.49646]
[1633064197389,0.003,2998.0,2997.9,6.20246]
[1633064199393,0.003,2998.0,2997.9,7.49646]
[1633064200792,0.003,2998.0,2997.9,6.20246]
[1633064205802,0.003,2998.0,2997.9,7.503885]
[1633064206268,0.003,2998.0,2997.9,27.023885]
[1633064206406,0.003,2998.0,2997.9,29.0136696]
[1633064212007,0.003,2998.5,2998.1,1.43599814]
[1633064212267,0.003,2998.5,2998.3,3.33432]
[1633064212410,0.003,2998.5,2998.4,0.2]
[1633064212610,0.003,2998.5,2998.4,1.2]
[1633064212809,0.003,2998.5,2998.4,2.03494145]
[1633064213010,0.003,2998.5,2998.4,3.17097251]
[1633064214609,0.003,2998.5,2998.4,8.17245251]
[1633064222017,0.003,2998.5,2998.4,8.17664651]
[1633064222217,0.003,2998.5,2998.4,9.59181436]
[1633064222416,0.003,2998.5,2998.4,30.40581436]
[1633064222615,0.003,2998.5,2998.4,29.11181436]
[1633064223415,0.003,2998.5,2998.4,30.40581436]
[1633064223617,0.29290727,2999.3,2998.4,46.20882013]
[1633064223814,0.29290727,2999.3,2999.2,4.996]
[1633064224016,0.003,2999.5,2999.3,0.20250976]
[1633064224277,0.006,3000.1,2999.4,6.68893305]
[1633064224416,0.006,3000.1,2999.8,0.004923]
[1633064224618,0.006,3000.1,2999.8,1.975523]
[1633064224818,0.006,3000.1,2999.8,4.56189879]
[1633064225016,0.006,3000.1,2999.8,27.491523]
[1633064225219,0.006,3000.1,2999.8,32.490313]
[1633064225622,0.006,3000.1,2999.8,33.784313]
[1633064225819,0.006,3000.1,2999.8,32.490313]
[1633064226819,0.006,3000.1,2999.8,33.784313]
[1633064228620,0.006,3000.3,3000.0,3.33206]
[1633064228820,0.006,3000.3,3000.2,5.002435]
[1633064229021,0.006,3000.3,3000.2,24.722435]
[1633064229224,0.006,3000.3,3000.2,25.722435]
[1633064229421,0.006,3000.4,3000.2,25.722435]
[1633064229626,0.006,3000.4,3000.3,6.81081063]
[1633064229824,0.006,3000.4,3000.3,32.52848063]
[1633064230024,0.006,3000.4,3000.3,33.82248063]
[1633064231425,0.006,3000.6,3000.3,33.82248063]
[1633064231625,0.006,3000.6,3000.4,4.996]
[1633064231825,0.006,3000.6,3000.4,24.716]
[1633064232025,0.006,3000.6,3000.4,25.716]
[1633064232225,0.006,3000.6,3000.4,32.37887]
[1633064232435,0.006,3000.6,3000.4,12.85887]
[1633064232626,0.006,3000.6,3000.4,32.37887]
[1633064232824,0.006,3000.6,3000.4,12.85887]
[1633064233625,0.006,3000.6,3000.4,33.67287]
[1633064233827,0.006,3000.6,3000.4,34.26938574]
[1633064234025,0.006,3000.6,3000.5,5.996]
[1633064234226,0.006,3000.6,3000.5,27.2228]
[1633064236430,0.006,3000.6,3000.5,32.21989]
[1633064238031,0.006,3000.6,3000.5,12.69989]
[1633064238229,0.014107,3000.6,3000.5,0.2]
[1633064238630,0.014107,3000.6,3000.1,0.2]
[1633064239029,0.97790107,3000.6,3000.1,0.2]
[1633064239295,1.30364184,3000.4,3000.1,0.2]
[1633064240428,1.30364184,3000.4,3000.1,1.2]
[1633064240829,1.30364184,3000.4,3000.1,6.1997]
[1633064242298,0.014107,3000.6,3000.3,4.99933]
[1633064242837,0.014107,3000.6,3000.4,2.494]
[1633064242838,0.006,3000.6,3000.4,2.494]
[1633064243032,0.006,3000.7,3000.5,25.41134583]
[1633064243234,0.006,3000.7,3000.6,1.30083171]
[1633064243432,0.006,3000.7,3000.6,2.30083171]
[1633064244034,0.006,3000.7,3000.6,14.15063171]
[1633064244436,0.006,3000.7,3000.6,2.30083171]
[1633064244834,0.00908565,3000.7,3000.6,2.30083171]
[1633064248041,0.00908565,3000.7,3000.6,0.2]
[1633064248304,0.0462655,3000.7,3000.2,0.2]
[1633064249038,2.22759929,3000.6,3000.2,0.2]
[1633064249440,0.0462655,3000.7,3000.2,5.19945]
[1633064249642,0.02029465,3000.7,3000.2,5.19945]
[1633064250643,1.08853323,3000.7,3000.3,1.0]
[1633064251042,1.08853323,3000.7,3000.3,5.99934]
[1633064251443,1.08853323,3000.7,3000.3,4.99934]
[1633064252842,1.08853323,3000.7,3000.4,1.0]
[1633064253244,1.08853323,3000.7,3000.4,0.985659]
[1633064254443,1.08853323,3000.7,3000.2,0.2]
[1633064255246,1.08853323,3000.7,3000.2,1.2]
[1633064255646,1.08952006,3000.7,3000.2,1.2]
[1633064256042,1.11454965,3000.7,3000.2,1.2]
[1633064256243,1.11454965,3000.7,3000.2,0.2]
[1633064256445,1.294,3000.5,3000.2,0.2]
[1633064256644,0.008625,3000.3,3000.2,0.2]
[1633064257244,4.909085,3000.5,3000.2,0.2]
[1633064257645,1.294,3000.4,3000.2,0.2]
[1633064257844,1.10334065,3000.7,3000.2,0.2]
[1633064258246,6.10348065,3000.7,3000.2,0.2]
[1633064258845,0.79521264,3000.4,3000.2,0.2]
[1633064262248,1.10334065,3000.7,3000.2,0.2]
[1633064262450,0.01007248,3000.7,3000.2,5.19968]
[1633064262849,0.01007248,3000.7,3000.3,1.0]
[1633064263049,0.01007248,3000.7,3000.2,5.19968]
[1633064263318,1.01511909,3000.7,3000.3,1.0]
[1633064263452,1.01511909,3000.7,3000.2,5.19968]
[1633064263652,1.13046018,3000.6,3000.3,1.0]
[1633064264059,1.13046018,3000.6,3000.3,4.33282]
[1633064264450,1.13046018,3000.6,3000.3,3.33282]
[1633064265252,1.13046018,3000.6,3000.0,5.18500598]
[1633064265455,1.13046018,3000.6,3000.1,1.0]
[1633064265853,1.13046018,3000.6,3000.1,5.9998]
[1633064266053,1.13046018,3000.6,3000.1,4.9998]
[1633064266324,3.3925058,3000.6,3000.0,3.3361985]
[1633064266454,1.13046018,3000.6,3000.0,3.3361985]
[1633064267060,1.13046018,3000.6,3000.3,4.99952]
[1633064268857,0.01007248,3000.7,3000.3,4.99952]
[1633064269155,0.01007248,3000.7,3000.4,1.0]
[1633064269355,0.01007248,3000.7,3000.5,4.99813]
[1633064269555,0.01007248,3000.7,3000.6,1.2]
[1633064269854,0.01007248,3000.7,3000.6,2.14772441]
[1633064271857,2.14934685,3002.0,3000.6,2.14772441]
[1633064272056,5.00465,3001.7,3000.9,3.3323691]
[1633064272861,1.30547174,3001.1,3000.9,3.3323691]
[1633064274662,1.30547174,3001.1,3000.9,8.3311091]
[1633064275467,1.30547174,3001.1,3000.9,3.3323691]
[1633064277267,1.30547174,3001.1,3000.9,8.3311491]
[1633064278567,1.30547174,3001.1,3000.9,3.3323691]
[1633064280369,0.006,3001.3,3000.9,3.3323691]
[1633064280768,0.006,3001.3,3001.0,4.99857]
[1633064281368,1.28262521,3001.2,3000.9,3.3323691]
[1633064282768,1.28262521,3001.2,3000.6,0.2]
[1633064282969,6.28196521,3001.2,3000.6,0.2]
[1633064283570,1.23529515,3001.1,3000.6,0.2]
[1633064283968,1.23529515,3001.1,3000.6,5.19923]
[1633064284171,1.28262521,3001.2,3000.7,3.3326876]
[1633064284435,1.28262521,3001.2,3000.7,3.5326876]
[1633064285629,1.2358464,3001.1,3000.7,3.5326876]
[1633064285830,1.28262521,3001.2,3000.7,3.5326876]
[1633064286631,1.23585331,3001.1,3000.7,3.5326876]
[1633064286830,1.28262521,3001.2,3000.7,3.5326876]
[1633064287231,1.28262521,3001.2,3000.9,4.99873]
[1633064288037,1.28262521,3001.2,3001.0,3.3324192]
[1633064288837,1.23712567,3001.1,3001.0,3.3324192]
[1633064289037,1.23753645,3001.2,3001.0,3.3324192]
[1633064291038,2.72167479,3001.2,3001.0,3.3324192]
[1633064291239,1.23932795,3001.1,3001.0,3.3324192]
[1633064295642,1.80290746,3001.1,3001.0,3.3324192]
[1633064295841,1.80290746,3001.1,3000.7,0.2]
[1633064297843,0.95885202,3000.9,3000.7,5.19895]
[1633064298044,1.24174797,3000.8,3000.7,5.19895]
[1633064299043,0.5642256,3001.0,3000.7,5.19895]
[1633064299244,1.80740165,3001.0,3000.7,5.19895]
[1633064299446,1.24297654,3000.9,3000.7,5.19895]
[1633064299643,1.24269716,3000.8,3000.7,0.2]
[1633064299843,0.81105693,3000.8,3000.7,0.2]
[1633064300046,2.05382252,3000.8,3000.7,0.2]
[1633064300648,7.05787052,3000.8,3000.5,0.003]
[1633064300845,1.80567943,3000.7,3000.5,0.003]
[1633064301044,1.80567943,3000.7,3000.4,0.003]
[1633064301045,1.80515958,3000.6,3000.4,0.003]
[1633064301244,1.24126795,3000.5,3000.2,0.003]
[1633064301445,1.24120885,3000.4,3000.2,0.003]
[1633064301845,1.24118453,3000.3,3000.2,0.003]
[1633064302047,1.24118325,3000.3,3000.2,0.003]
[1633064302245,1.24119004,3000.4,3000.2,0.003]
[1633064302450,1.24118464,3000.3,3000.2,0.003]
[1633064302648,1.24117476,3000.4,3000.2,0.003]
[1633064302847,1.2411669,3000.3,3000.1,0.003]
[1633064303045,1.24117787,3000.2,3000.1,0.003]
[1633064303245,4.69087333,3000.5,3000.1,0.003]
[1633064303246,1.24113149,3000.4,3000.1,0.003]
[1633064304250,1.24113149,3000.4,3000.1,1.42515521]
[1633064304651,1.24113149,3000.4,3000.2,0.003]
[1633064305050,1.24113149,3000.4,3000.1,0.003]
[1633064305850,1.24113149,3000.4,3000.2,4.99991]
[1633064306252,1.24113149,3000.4,3000.3,0.003]
[1633064307855,3.33366,3000.5,3000.3,4.99975]
[1633064308252,3.33366,3000.5,3000.4,0.003]
[1633064308456,4.57598953,3000.5,3000.4,0.003]
[1633064309253,4.57598953,3000.5,3000.4,1.297]
[1633064309453,1.87952032,3001.2,3000.8,0.81508493]
[1633064309454,0.5642245,3001.0,3000.8,0.81508493]
[1633064309657,1.32252384,3001.3,3000.9,9.40990839]
[1633064309658,0.56448132,3001.1,3000.9,9.40990839]
[1633064309858,0.9468022,3001.3,3001.2,0.91069134]
[1633064309859,0.006,3001.3,3001.2,0.91069134]
[1633064310054,0.006,3001.3,3001.2,7.31909134]
[1633064310255,0.006,3001.3,3001.2,10.78135488]
[1633064310457,0.006,3001.3,3001.2,10.57745058]
[1633064310655,0.006,3001.3,3001.2,11.75145478]
[1633064310854,0.006,3001.3,3001.2,31.27145478]
[1633064311455,0.006,3001.3,3001.2,36.26776478]
[1633064311655,0.006,3001.3,3001.2,38.27470408]
[1633064312658,0.006,3001.3,3001.2,36.26776478]
[1633064314659,0.006,3001.3,3001.2,16.74776478]
[1633064314860,0.006,3001.3,3001.2,36.26776478]
[1633064315261,0.009,3001.5,3001.2,44.26776478]
[1633064315460,0.009,3001.5,3001.4,4.996]
[1633064315663,0.006,3001.6,3001.4,24.716]
[1633064315859,0.006,3001.6,3001.5,4.996]
[1633064316059,0.006,3001.6,3001.5,6.196]
[1633064316662,0.006,3001.6,3001.5,7.49]
[1633064317461,0.006,3001.7,3001.5,27.01]
[1633064317662,0.006,3001.7,3001.6,9.99132]
[1633064317862,0.009,3002.0,3001.7,1.25407641]
[1633064318067,0.009,3002.0,3001.7,1.45407641]
[1633064318461,0.009,3002.0,3001.7,2.31808492]
[1633064319463,0.009,3002.0,3001.7,3.62030392]
[1633064319665,0.009,3002.0,3001.7,4.62030392]
[1633064319862,0.009,3002.0,3001.7,3.32630392]
[1633064320062,0.009,3002.0,3001.8,5.99548]
[1633064320262,0.009,3002.0,3001.8,6.19548]
[1633064320463,0.009,3002.0,3001.8,7.48948]
[1633064320662,0.009,3002.0,3001.8,6.19548]
[1633064321863,0.009,3002.0,3001.8,8.56440956]
[1633064322064,0.009,3002.0,3001.8,9.81760956]
[1633064322465,0.009,3002.0,3001.8,8.52360956]
[1633064323664,0.009,3002.0,3001.8,6.19548]
[1633064325265,0.87113318,3002.2,3001.8,6.19548]
[1633064325664,0.87113318,3002.2,3001.8,1.2]
[1633064325866,0.87113318,3002.2,3001.8,0.2]
[1633064326070,0.006,3002.2,3001.8,5.19713]
[1633064326266,0.006,3002.2,3001.9,3.331167]
[1633064327270,0.006,3002.2,3002.0,4.99671]
[1633064329069,0.006,3002.2,3002.1,1.0]
[1633064329268,0.00764252,3002.2,3002.1,1.2]
[1633064329468,0.00764252,3002.2,3002.1,0.2]
[1633064329871,1.30164252,3002.2,3002.1,0.2]
[1633064330071,1.30164252,3002.2,3001.3,11.4828]
[1633064330072,5.50898048,3001.9,3001.3,11.4828]
[1633064330469,5.50898048,3001.9,3001.4,3.3310308]
[1633064330672,5.50898048,3001.9,3001.4,8.3287708]
[1633064330870,5.50898048,3001.9,3001.4,3.3310308]
[1633064330871,6.50331614,3001.9,3001.4,3.3310308]
[1633064331071,1.15909657,3001.8,3001.4,3.3310308]
[1633064331274,8.84087048,3001.9,3001.4,3.3310308]
[1633064331671,8.84087048,3001.9,3001.5,5.00056]
[1633064331872,8.84087048,3001.9,3001.6,0.2]
[1633064332673,1.10341677,3001.7,3001.6,0.2]